fUSD/lending_fUSD_20241216
["ID","MTS","AMOUNT","RATE_DAILY","PERIOD"]
[345614644,1734384634518,-184.91,0.00024998,4]
[345614645,1734384634528,-500.0,0.00024998,4]
[345614646,1734384634538,-500.0,0.00024998,4]
[345614647,1734384634548,-500.0,0.00024998,4]
[345614648,1734384634557,-500.0,0.00024998,4]
[345614649,1734384634567,-500.0,0.00024998,4]
[345614650,1734384634577,-2500.0,0.00024998,120]
[345614651,1734384634587,-636.95743015,0.00024998,120]
[345614652,1734384634597,-500.0,0.00024998,4]
[345614653,1734384634607,-500.0,0.00024998,4]
[345614654,1734384634617,-397.18,0.00024998,4]
[345614655,1734384634626,-500.0,0.00024998,4]
[345614656,1734384634635,-500.0,0.00024998,4]
[345614657,1734384634644,-505.32266873,0.00024998,4]
[345614658,1734384634654,-578.19,0.00024998,4]
[345614659,1734384634664,-593.48317225,0.00024998,4]
[345614660,1734384634674,-500.0,0.00024998,4]
[345614661,1734384634683,-500.0,0.00024998,4]
[345614662,1734384634695,-623.46501703,0.00024998,4]
[345614663,1734384634706,-500.0,0.00024998,4]
[345614664,1734384634716,-500.0,0.00024998,4]
[345614665,1734384634725,-315.18,0.00024998,4]
[345614666,1734384634735,-500.0,0.00024998,4]
[345614667,1734384634746,-500.0,0.00024998,4]
[345614668,1734384634755,-500.0,0.00024998,4]
[345614669,1734384634765,-500.0,0.00024998,4]
[345614670,1734384634775,-500.0,0.00024998,4]
[345614671,1734384634784,-500.0,0.00024998,4]
[345614672,1734384634794,-235.79704582,0.00024998,4]
[345614673,1734384634804,-156.494819,0.00024998,4]
[345614674,1734384634813,-156.494819,0.00024998,4]
[345614675,1734384634823,-156.494819,0.00024998,4]
[345614676,1734384634832,-217.644403,0.00024998,4]
[345614677,1734384634842,-156.494819,0.00024998,4]
[345614678,1734384634851,-217.644403,0.00024998,4]
[345614679,1734384634860,-217.644403,0.00024998,4]
[345614680,1734384634869,-217.644403,0.00024998,4]
[345614681,1734384634879,-500.0,0.00024998,4]
[345614682,1734384634888,-500.0,0.00024998,4]
[345614683,1734384634898,-500.0,0.00024998,4]
[345614684,1734384634907,-627.46,0.00024998,4]
[345614685,1734384634916,-627.46,0.00024998,4]
[345614686,1734384634925,-627.46,0.00024998,4]
[345614687,1734384634935,-627.46,0.00024998,4]
[345614688,1734384634945,-627.46,0.00024998,4]
[345614689,1734384634955,-500.0,0.00024998,4]
[345614690,1734384634969,-500.0,0.00024998,4]
[345614691,1734384634980,-500.0,0.00024998,4]
[345614692,1734384634990,-500.0,0.00024998,4]
[345614693,1734384635003,-500.0,0.00024998,4]
[345614694,1734384635014,-500.0,0.00024998,4]
[345614695,1734384635025,-500.0,0.00024998,4]
[345614696,1734384635036,-500.0,0.00024998,4]
[345614697,1734384635047,-239.36,0.00024998,4]
[345614698,1734384635058,-470.47678277,0.00024998,4]
[345614699,1734384635075,-29.52321723,0.00024998,4]
[345614700,1734384635085,-251.76667273,0.00024998,4]
[345614701,1734384635105,-500.0,0.00024997,4]
[345614702,1734384635117,-248.23332727,0.00024998,4]
[345614703,1734384635128,-26.64667273,0.00024998,4]
[345614704,1734384635157,-278.06409137,0.00024998,4]
[345614709,1734384637634,-203.9592359,0.00024998,4]
[345614710,1734384637644,-500.0,0.00024998,4]
[345614712,1734384637653,-291.70356137,0.00024998,4]
[345614714,1734384637664,-208.29643863,0.00024998,4]
[345614716,1734384637673,-308.12683592,0.00024998,4]
[345614718,1734384637682,-500.0,0.00024998,4]
[345614719,1734384637691,-500.0,0.00024998,4]
[345614720,1734384637701,-467.42096419,0.00024998,4]
[345614721,1734384637755,-32.57903581,0.00024998,4]
[345614722,1734384637766,-500.0,0.00024998,4]
[345614723,1734384637776,-473.4,0.00024998,4]
[345614724,1734384637787,-652.11,0.00024998,4]
[345614725,1734384637797,-652.11,0.00024998,4]
[345614726,1734384637807,-652.11,0.00024998,4]
[345614727,1734384637816,-652.11,0.00024998,4]
[345614728,1734384637825,-652.11,0.00024998,4]
[345614729,1734384637835,-500.0,0.00024998,4]
[345614730,1734384637844,-500.0,0.00024998,4]
[345614731,1734384637853,-500.0,0.00024998,4]
[345614732,1734384637864,-500.0,0.00024998,4]
[345614733,1734384637874,-500.0,0.00024998,4]
[345614734,1734384637883,-500.0,0.00024998,4]
[345614735,1734384637892,-500.0,0.00024998,4]
[345614736,1734384637901,-248.0647822,0.00024998,4]
[345614737,1734384637910,-382.73907093,0.00024998,4]
[345614738,1734384637922,-117.26092907,0.00024998,4]
[345614739,1734384637930,-500.0,0.00024998,4]
[345614740,1734384637939,-500.0,0.00024998,4]
[345614741,1734384637948,-500.0,0.00024998,4]
[345614742,1734384637959,-500.0,0.00024998,4]
[345614743,1734384637969,-619.7,0.00024998,4]
[345614744,1734384637978,-500.0,0.00024998,4]
[345614745,1734384637987,-500.0,0.00024998,4]
[345614746,1734384637996,-500.0,0.00024998,4]
[345614747,1734384638005,-564.28,0.00024998,4]
[345614748,1734384638014,-602.06,0.00024998,4]
[345614749,1734384638023,-500.0,0.00024998,4]
[345614750,1734384638032,-500.0,0.00024998,4]
[345614751,1734384638041,-500.0,0.00024998,4]
[345614752,1734384638050,-500.0,0.00024998,4]
[345614753,1734384638059,-500.0,0.00024998,4]
[345614754,1734384638068,-265.82734093,0.00024998,4]
[345614755,1734384638080,-234.17265907,0.00024998,4]
[345614756,1734384638090,-500.0,0.00024998,4]
[345614757,1734384638099,-535.65007912,0.00024998,4]
[345614758,1734384638629,-45.47017746,0.00024998,4]
[345614759,1734384638639,-500.0,0.00024998,4]
[345614760,1734384638648,-507.48,0.00024998,4]
[345614761,1734384638658,-500.0,0.00024998,4]
[345614762,1734384638667,-507.11928146,0.00024998,4]
[345614763,1734384638677,-361.55,0.00024998,4]
[345614764,1734384638686,-500.0,0.00024998,4]
[345614765,1734384638696,-500.0,0.00024998,4]
[345614766,1734384638707,-500.0,0.00024998,4]
[345614767,1734384638718,-500.0,0.00024998,4]
[345614768,1734384638728,-532.77,0.00024998,4]
[345614769,1734384638737,-500.0,0.00024998,4]
[345614770,1734384638747,-500.0,0.00024998,4]
[345614771,1734384638756,-500.0,0.00024998,4]
[345614772,1734384638765,-500.0,0.00024998,4]
[345614773,1734384638774,-500.0,0.00024998,4]
[345614774,1734384638785,-500.0,0.00024998,4]
[345614775,1734384638795,-481.6,0.00024998,4]
[345614776,1734384638805,-300.20481957,0.00024998,4]
[345614777,1734384638814,-570.78733316,0.00024998,4]
[345614778,1734384638823,-500.0,0.00024998,4]
[345614779,1734384638833,-589.39,0.00024998,4]
[345614780,1734384638842,-500.0,0.00024998,4]
[345614781,1734384638851,-500.0,0.00024998,4]
[345614782,1734384638861,-500.0,0.00024998,4]
[345614783,1734384638870,-500.0,0.00024998,4]
[345614784,1734384638880,-500.0,0.00024998,4]
[345614785,1734384638889,-500.0,0.00024998,4]
[345614786,1734384638898,-500.0,0.00024998,4]
[345614787,1734384638908,-500.0,0.00024998,4]
[345614788,1734384638917,-500.0,0.00024998,4]
[345614789,1734384638926,-500.0,0.00024998,4]
[345614790,1734384638935,-500.0,0.00024998,4]
[345614791,1734384638944,-500.0,0.00024998,4]
[345614792,1734384638953,-500.0,0.00024998,4]
[345614793,1734384638964,-500.0,0.00024998,4]
[345614794,1734384638975,-181.62,0.00024998,4]
[345614795,1734384638984,-500.0,0.00024998,4]
[345614796,1734384638993,-500.0,0.00024998,4]
[345614797,1734384639003,-500.0,0.00024998,4]
[345614798,1734384639012,-500.0,0.00024998,4]
[345614799,1734384639021,-624.12,0.00024998,4]
[345614800,1734384639030,-500.0,0.00024998,4]
[345614801,1734384639039,-424.91805361,0.00024998,4]
[345614802,1734384639048,-500.0,0.00024998,4]
[345614803,1734384639057,-500.0,0.00024998,4]
[345614804,1734384639067,-500.0,0.00024998,4]
[345614805,1734384639077,-500.0,0.00024998,4]
[345614806,1734384639086,-500.0,0.00024998,4]
[345614807,1734384639096,-500.0,0.00024998,4]
[345614808,1734384639105,-500.0,0.00024998,4]
[345614809,1734384639115,-500.0,0.00024998,4]
[345614810,1734384639124,-500.0,0.00024998,4]
[345614811,1734384639134,-500.0,0.00024998,4]
[345614812,1734384639143,-500.0,0.00024998,4]
[345614813,1734384639152,-500.0,0.00024998,4]
[345614814,1734384639161,-500.0,0.00024998,4]
[345614815,1734384639170,-500.0,0.00024998,4]
[345614816,1734384639179,-500.0,0.00024998,4]
[345614817,1734384639189,-500.0,0.00024998,4]
[345614818,1734384639199,-504.38999457,0.00024998,4]
[345614819,1734384639208,-500.0,0.00024998,4]
[345614820,1734384639221,-500.0,0.00024998,4]
[345614821,1734384639231,-500.0,0.00024998,4]
[345614822,1734384639240,-500.0,0.00024998,4]
[345614823,1734384639249,-500.0,0.00024998,4]
[345614824,1734384639258,-758.42,0.00024998,4]
[345614825,1734384639268,-758.42,0.00024998,4]
[345614826,1734384639278,-500.0,0.00024998,4]
[345614827,1734384639287,-500.0,0.00024998,4]
[345614828,1734384639296,-758.42,0.00024998,4]
[345614829,1734384639306,-500.0,0.00024998,4]
[345614830,1734384639316,-500.0,0.00024998,4]
[345614831,1734384639326,-758.42,0.00024998,4]
[345614832,1734384639336,-500.0,0.00024998,4]
[345614833,1734384639346,-500.0,0.00024998,4]
[345614834,1734384639355,-500.0,0.00024998,4]
[345614835,1734384639365,-500.0,0.00024998,4]
[345614836,1734384639375,-500.0,0.00024998,4]
[345614837,1734384639385,-500.0,0.00024998,4]
[345614838,1734384639394,-157.55,0.00024998,4]
[345614840,1734384639403,-500.0,0.00024998,4]
[345614843,1734384639412,-500.0,0.00024998,4]
[345614844,1734384639422,-500.0,0.00024998,4]
[345614845,1734384639431,-500.0,0.00024998,4]
[345614846,1734384639441,-500.0,0.00024998,4]
[345614847,1734384639450,-500.0,0.00024998,4]
[345614848,1734384639460,-500.0,0.00024998,4]
[345614849,1734384639471,-500.0,0.00024998,4]
[345614852,1734384639480,-500.0,0.00024998,4]
[345614853,1734384639492,-497.45,0.00024998,4]
[345614854,1734384639501,-500.0,0.00024998,4]
[345614855,1734384639511,-500.0,0.00024998,4]
[345614856,1734384639520,-500.0,0.00024998,4]
[345614857,1734384639529,-283.76,0.00024998,4]
[345614858,1734384639538,-500.0,0.00024998,4]
[345614859,1734384639547,-999.0,0.00024998,2]
[345614861,1734384639556,-500.0,0.00024998,4]
[345614863,1734384639566,-500.0,0.00024998,4]
[345614864,1734384639575,-500.0,0.00024998,4]
[345614865,1734384639584,-500.0,0.00024998,4]
[345614866,1734384639595,-500.0,0.00024998,4]
[345614867,1734384639604,-500.0,0.00024998,4]
[345614868,1734384639613,-500.0,0.00024998,4]
[345614869,1734384639622,-500.0,0.00024998,4]
[345614870,1734384639631,-500.0,0.00024998,4]
[345614871,1734384639641,-500.0,0.00024998,4]
[345614872,1734384639651,-500.0,0.00024998,4]
[345614873,1734384639659,-500.0,0.00024998,4]
[345614874,1734384639669,-500.0,0.00024998,4]
[345614875,1734384639678,-500.0,0.00024998,4]
[345614876,1734384639687,-500.0,0.00024998,4]
[345614877,1734384639696,-500.0,0.00024998,4]
[345614878,1734384639711,-171.85,0.00024998,4]
[345614879,1734384639721,-500.0,0.00024998,4]
[345614880,1734384639730,-500.0,0.00024998,4]
[345614881,1734384639740,-500.0,0.00024998,4]
[345614882,1734384639751,-500.0,0.00024998,4]
[345614883,1734384639760,-500.0,0.00024998,4]
[345614884,1734384639770,-500.0,0.00024998,4]
[345614885,1734384639780,-500.0,0.00024998,4]
[345614886,1734384639790,-500.0,0.00024998,4]
[345614887,1734384639799,-500.0,0.00024998,4]
[345614888,1734384639809,-500.0,0.00024998,4]
[345614889,1734384639818,-500.0,0.00024998,4]
[345614890,1734384639828,-500.0,0.00024998,4]
[345614891,1734384639837,-500.0,0.00024998,4]
[345614892,1734384639847,-183.84,0.00024998,4]
[345614893,1734384639857,-500.0,0.00024998,4]
[345614894,1734384639866,-500.0,0.00024998,4]
[345614895,1734384639876,-247.962239,0.00024998,4]
[345614896,1734384639886,-500.0,0.00024998,4]
[345614897,1734384639895,-500.0,0.00024998,4]
[345614898,1734384639905,-500.0,0.00024998,4]
[345614899,1734384639914,-500.0,0.00024998,4]
[345614900,1734384639924,-500.0,0.00024998,4]
[345614901,1734384639933,-500.0,0.00024998,4]
[345614902,1734384639944,-500.0,0.00024998,4]
[345614903,1734384639954,-500.0,0.00024998,4]
[345614904,1734384639966,-500.0,0.00024998,4]
[345614905,1734384639975,-507.5,0.00024998,4]
[345614906,1734384639985,-483.53,0.00024998,4]
[345614907,1734384639996,-500.0,0.00024998,4]
[345614908,1734384640005,-500.0,0.00024998,4]
[345614909,1734384640014,-500.0,0.00024998,4]
[345614910,1734384640024,-500.0,0.00024998,4]
[345614911,1734384640033,-500.0,0.00024998,4]
[345614912,1734384640043,-167.43,0.00024998,4]
[345614913,1734384640052,-500.0,0.00024998,4]
[345614914,1734384640061,-314.52,0.00024998,4]
[345614915,1734384640071,-528.0,0.00024998,2]
[345614916,1734384640080,-250000.0,0.00024999,2]
[345614917,1734384640089,-250000.0,0.00024999,3]
[345614918,1734384640099,-250000.0,0.00024999,4]
[345614919,1734384640108,-250000.0,0.00024999,5]
[345614920,1734384640117,-300.0,0.00024999,10]
[345614921,1734384640126,-300.0,0.00024999,10]
[345614923,1734384640135,-150.0,0.00024999,30]
[345614924,1734384640144,-500.0,0.00024999,4]
[345614925,1734384640154,-366.06,0.00024999,4]
[345614926,1734384640163,-5000.0,0.00024999,20]
[345614927,1734384640172,-898.82,0.00024999,2]
[345614928,1734384640181,-500.0,0.00024999,4]
[345614929,1734384640191,-500.0,0.00024999,4]
[345614930,1734384640200,-500.0,0.00024999,4]
[345614931,1734384640210,-500.0,0.00024999,4]
[345614932,1734384640220,-500.0,0.00024999,4]
[345614933,1734384640229,-500.0,0.00024999,4]
[345614934,1734384640239,-295.25,0.00024999,4]
[345614935,1734384640248,-1000.0,0.00024999,2]
[345614936,1734384640258,-156.494819,0.00024999,4]
[345614937,1734384640267,-156.494819,0.00024999,4]
[345614938,1734384640276,-217.644403,0.00024999,4]
[345614939,1734384640285,-217.644403,0.00024999,4]
[345614940,1734384640294,-627.46,0.00024999,4]
[345614942,1734384640304,-627.46,0.00024999,4]
[345614944,1734384640314,-627.46,0.00024999,4]
[345614945,1734384640323,-627.46,0.00024999,4]
[345614946,1734384640333,-627.46,0.00024999,4]
[345614947,1734384640342,-627.46,0.00024999,4]
[345614948,1734384640351,-627.46,0.00024999,4]
[345614949,1734384640361,-627.46,0.00024999,4]
[345614950,1734384640370,-627.46,0.00024999,4]
[345614951,1734384640379,-627.46,0.00024999,4]
[345614952,1734384640388,-627.46,0.00024999,4]
[345614953,1734384640398,-627.46,0.00024999,4]
[345614954,1734384640406,-627.46,0.00024999,4]
[345614955,1734384640416,-627.46,0.00024999,4]
[345614956,1734384640425,-627.46,0.00024999,4]
[345614957,1734384640434,-627.46,0.00024999,4]
[345614958,1734384640443,-627.46,0.00024999,4]
[345614959,1734384640452,-627.46,0.00024999,4]
[345614960,1734384640462,-627.69018919,0.00024999,4]
[345614961,1734384640471,-500.0,0.00024999,4]
[345614962,1734384640480,-500.0,0.00024999,4]
[345614963,1734384640489,-500.0,0.00024999,4]
[345614964,1734384640498,-500.0,0.00024999,4]
[345614965,1734384640508,-500.0,0.00024999,4]
[345614966,1734384640517,-389.69320033,0.00024999,4]
[345614967,1734384640527,-652.11,0.00024999,4]
[345614968,1734384640536,-652.11,0.00024999,4]
[345614969,1734384640546,-652.11,0.00024999,4]
[345614970,1734384640555,-652.11,0.00024999,4]
[345614971,1734384640565,-652.11,0.00024999,4]
[345614972,1734384640574,-500.0,0.00024999,4]
[345614973,1734384640584,-652.11,0.00024999,4]
[345614974,1734384640594,-500.0,0.00024999,4]
[345614975,1734384640603,-652.11,0.00024999,4]
[345614976,1734384640612,-500.0,0.00024999,4]
[345614977,1734384640622,-652.11,0.00024999,4]
[345614978,1734384640631,-500.0,0.00024999,4]
[345614979,1734384640641,-652.11,0.00024999,4]
[345614980,1734384640651,-500.0,0.00024999,4]
[345614981,1734384640660,-652.11,0.00024999,4]
[345614982,1734384640669,-652.11,0.00024999,4]
[345614983,1734384640678,-500.0,0.00024999,4]
[345614984,1734384640688,-652.11,0.00024999,4]
[345614985,1734384640698,-500.0,0.00024999,4]
[345614986,1734384640711,-652.11,0.00024999,4]
[345614987,1734384640721,-500.0,0.00024999,4]
[345614988,1734384640730,-652.11,0.00024999,4]
[345614989,1734384640739,-500.0,0.00024999,4]
[345614990,1734384640748,-652.11,0.00024999,4]
[345614991,1734384640758,-500.0,0.00024999,4]
[345614992,1734384640766,-652.11,0.00024999,4]
[345614993,1734384640902,-652.11,0.00024999,4]
[345614994,1734384640912,-500.0,0.00024999,4]
[345614995,1734384640922,-652.11,0.00024999,4]
[345614996,1734384640931,-500.0,0.00024999,4]
[345614997,1734384640940,-500.0,0.00024999,4]
[345614998,1734384640949,-652.2296,0.00024999,4]
[345614999,1734384640958,-500.0,0.00024999,4]
[345615000,1734384640969,-500.0,0.00024999,4]
[345615001,1734384640978,-500.0,0.00024999,4]
[345615002,1734384640987,-500.0,0.00024999,4]
[345615003,1734384640996,-500.0,0.00024999,4]
[345615004,1734384641006,-301.77,0.00024999,4]
[345615005,1734384641015,-1000.0,0.00024999,2]
[345615006,1734384641024,-1000.0,0.00024999,2]
[345615007,1734384641034,-1000.0,0.00024999,2]
[345615008,1734384641043,-1000.0,0.00024999,2]
[345615009,1734384641052,-1000.0,0.00024999,2]
[345615010,1734384641062,-635.97371486,0.00024999,4]
[345615011,1734384641071,-1000.0,0.00024999,2]
[345615012,1734384641080,-1000.0,0.00024999,2]
[345615013,1734384641090,-1000.0,0.00024999,2]
[345615014,1734384641099,-1000.0,0.00024999,2]
[345615015,1734384641108,-1007.92283234,0.00024999,2]
[345615016,1734384641117,-500.0,0.00024999,4]
[345615017,1734384641127,-500.0,0.00024999,4]
[345615018,1734384641136,-500.0,0.00024999,4]
[345615019,1734384641145,-500.0,0.00024999,4]
[345615020,1734384641154,-500.0,0.00024999,4]
[345615021,1734384641163,-500.0,0.00024999,4]
[345615022,1734384641173,-500.0,0.00024999,4]
[345615023,1734384641182,-500.0,0.00024999,4]
[345615024,1734384641192,-500.0,0.00024999,4]
[345615025,1734384641201,-500.0,0.00024999,4]
[345615026,1734384641210,-500.0,0.00024999,4]
[345615027,1734384641220,-534.06900002,0.00024999,4]
[345615028,1734384641229,-500.0,0.00024999,4]
[345615029,1734384641239,-500.0,0.00024999,4]
[345615030,1734384641248,-500.0,0.00024999,4]
[345615031,1734384641257,-329.41704708,0.00024999,4]
[345615032,1734384641266,-500.0,0.00024999,4]
[345615033,1734384641275,-500.0,0.00024999,4]
[345615034,1734384641285,-500.0,0.00024999,4]
[345615035,1734384641294,-536.0,0.00024999,4]
[345615036,1734384641303,-500.0,0.00024999,4]
[345615037,1734384641312,-513.37,0.00024999,4]
[345615038,1734384641322,-500.0,0.00024999,4]
[345615039,1734384641331,-500.0,0.00024999,4]
[345615040,1734384641341,-616.59,0.00024999,4]
[345615041,1734384641351,-224.12,0.00024999,4]
[345615042,1734384641362,-758.42,0.00024999,4]
[345615043,1734384641371,-758.42,0.00024999,4]
[345615044,1734384641381,-758.42,0.00024999,4]
[345615045,1734384641390,-758.42,0.00024999,4]
[345615046,1734384641399,-758.42,0.00024999,4]
[345615047,1734384641408,-758.42,0.00024999,4]
[345615048,1734384641417,-758.42,0.00024999,4]
[345615049,1734384641426,-758.42,0.00024999,4]
[345615050,1734384641436,-758.42,0.00024999,4]
[345615051,1734384641445,-758.42,0.00024999,4]
[345615052,1734384641454,-758.42,0.00024999,4]
[345615053,1734384641464,-758.42,0.00024999,4]
[345615054,1734384641475,-562.39,0.00024999,4]
[345615055,1734384641484,-758.42,0.00024999,4]
[345615056,1734384641493,-758.42,0.00024999,4]
[345615057,1734384641503,-758.42,0.00024999,4]
[345615058,1734384641512,-758.42,0.00024999,4]
[345615059,1734384641521,-758.42,0.00024999,4]
[345615060,1734384641531,-758.50015131,0.00024999,4]
[345615061,1734384641541,-500.0,0.00024999,4]
[345615062,1734384641551,-500.0,0.00024999,4]
[345615063,1734384641560,-500.0,0.00024999,4]
[345615064,1734384641570,-416.26,0.00024999,4]
[345615065,1734384641579,-500.0,0.00024999,4]
[345615066,1734384641588,-500.0,0.00024999,4]
[345615067,1734384641598,-500.0,0.00024999,4]
[345615068,1734384641607,-500.0,0.00024999,4]
[345615069,1734384641617,-500.0,0.00024999,4]
[345615070,1734384641626,-500.0,0.00024999,4]
[345615071,1734384641636,-500.0,0.00024999,4]
[345615072,1734384641645,-500.0,0.00024999,4]
[345615073,1734384641654,-500.0,0.00024999,4]
[345615074,1734384641663,-500.0,0.00024999,4]
[345615075,1734384641673,-500.0,0.00024999,4]
[345615076,1734384641682,-500.0,0.00024999,4]
[345615077,1734384641692,-500.0,0.00024999,4]
[345615078,1734384641703,-500.0,0.00024999,4]
[345615079,1734384641714,-500.0,0.00024999,4]
[345615080,1734384641724,-315.84832444,0.00024999,4]
[345615081,1734384641733,-500.0,0.00024999,4]
[345615082,1734384641743,-500.0,0.00024999,4]
[345615083,1734384641752,-414.71082789,0.00024999,4]
[345615084,1734384641761,-540.37,0.00024999,4]
[345615085,1734384641771,-500.0,0.00024999,4]
[345615086,1734384641782,-500.0,0.00024999,4]
[345615087,1734384641792,-360.95643509,0.00024999,4]
[345615088,1734384641801,-501.60358497,0.00024999,4]
[345615089,1734384641812,-500.0,0.00024999,4]
[345615090,1734384641823,-500.0,0.00024999,4]
[345615091,1734384641833,-500.0,0.00024999,4]
[345615092,1734384641842,-500.0,0.00024999,4]
[345615093,1734384641852,-500.0,0.00024999,4]
[345615094,1734384641861,-500.0,0.00024999,4]
[345615095,1734384641872,-500.0,0.00024999,4]
[345615096,1734384641881,-197.44387099,0.00024999,4]
[345615097,1734384641890,-500.0,0.00024999,4]
[345615098,1734384641899,-500.0,0.00024999,4]
[345615099,1734384641908,-184.02,0.00024999,4]
[345615100,1734384641917,-500.0,0.00024999,4]
[345615101,1734384641927,-500.0,0.00024999,4]
[345615102,1734384641935,-500.0,0.00024999,4]
[345615103,1734384641944,-500.0,0.00024999,4]
[345615104,1734384641953,-500.0,0.00024999,4]
[345615105,1734384641963,-285.21,0.00024999,4]
[345615106,1734384641972,-30000.0,0.00025,2]
[345615107,1734384641981,-160.45861042,0.00025,2]
[345615108,1734384641990,-1083053.66238591,0.00025,4]
[345615109,1734384642000,-3444.07698649,0.00025,2]
[345615110,1734384642009,-70712.95460604,0.00025,2]
[345615111,1734384642018,-26832464.5820968,0.00025,2]
[345615112,1734384642048,-4633.1293317,0.00025,2]
[345615113,1734384642061,-260.824386,0.00025,2]
[345615114,1734384642072,-55221.98694263,0.00025,2]
[345615115,1734384642085,-358.62499997,0.00025,2]
[345615116,1734384642095,-717.70335969,0.00025,2]
[345615121,1734384642755,-250.392,0.00025,2]
[345615122,1734384642763,-10331.608,0.00025,2]
[345615123,1734384642780,-116447.4756586,0.00025,2]
[345615124,1734384642895,-3693.882923,0.00025,2]
[345615131,1734384645730,-121025.81626634,0.00025,2]
[345615132,1734384645792,-10076.042,0.00025,2]
[345615133,1734384645803,-1202.66871539,0.00025,2]
[345615134,1734384645910,-436.125,0.00025,2]
[345615135,1734384645921,-2103.83167835,0.00025,2]
[345615136,1734384645976,-30486.0160811,0.00025,2]
[345615144,1734384964255,158.61,0.00010137,2]
[345615146,1734385061281,13011.0,0.0002,30]
[345615148,1734385604201,-295.28286713,0.00016781,7]
[345615149,1734385604225,-98.91282229,0.00018065,2]
[345615150,1734385745107,-59.69717771,0.00018065,2]
[345615151,1734385745129,-151.0,0.0002052,2]
[345615152,1734385745151,-1092.74,0.00021862,2]
[345615153,1734385783138,5157.67521982,0.00015007,2]
[345615154,1734385783173,6451.95445849,0.00015007,2]
[345615155,1734385783208,238390.37032169,0.00015007,2]
[345615158,1734385832015,-20851.82856747,0.0002,3]
[345615159,1734385832027,-12205.13305466,0.0002,3]
[345615160,1734385832036,-152.0,0.00022951,3]
[345615161,1734385832046,-200.0,0.0002348,2]
[345615162,1734385832056,-23900.0,0.00023481,2]
[345615163,1734385832065,-250.0,0.00023503,2]
[345615164,1734385832074,-8547.58055858,0.00023514,2]
[345615165,1734385832086,-580.87891067,0.00023514,2]
[345615166,1734385832157,-8891.40070011,0.00023514,2]
[345615197,1734385837817,-37177.36264472,0.00023514,2]
[345615198,1734385837827,-1000.0,0.00023514,2]
[345615199,1734385837837,-13873.37,0.00023516,2]
[345615200,1734385837846,-250.0,0.0002356,2]
[345615201,1734385837856,-759.14,0.00023573,2]
[345615202,1734385837866,-150.0,0.00023644,2]
[345615203,1734385837875,-239.71,0.00023659,2]
[345615204,1734385837885,-250.0,0.00023672,2]
[345615205,1734385837894,-185.47,0.00023673,2]
[345615206,1734385837904,-150.94,0.00023735,30]
[345615207,1734385837913,-428.197,0.0002375,2]
[345615208,1734385837922,-250.0,0.00023835,2]
[345615209,1734385837932,-5000.0,0.00024,2]
[345615210,1734385837941,-1092.74,0.00024126,2]
[345615211,1734385837950,-310.0,0.0002425,2]
[345615212,1734385837959,-153.0,0.0002429,2]